[Event "Titled Tuesday Blitz September 28 2021"]
[White "Moskalenko, Alexander"]
[Black "Sagripanti, Michele"]
[WhiteFideId "4155351"]
[BlackFideId "847895"]
[WhiteElo "2515"]
[BlackElo "2195"]
[Result "1-0"]
[Round "01"]
[TimeControl "180+1"]
[Date "2021.09.28"]
[WhiteClock "0:00:50"]
[BlackClock "0:00:28"]

1. c4 {[%clk 0:02:11]}  g6 {[%clk 0:02:57]} 2. g3 {[%clk 0:02:09]}  Bg7 {[%clk 0:02:58]} 3. Bg2 {[%clk 0:02:10]}  e5 {[%clk 0:02:57]} 4. Nc3 {[%clk 0:02:11]}  Nc6 {[%clk 0:02:56]} 5. d3 {[%clk 0:02:12]}  Nge7 {[%clk 0:02:57]} 6. Nf3 {[%clk 0:02:13]}  O-O {[%clk 0:02:57]} 7. h4 {[%clk 0:02:10]}  d6 {[%clk 0:02:41]} 8. h5 {[%clk 0:02:10]}  Bg4 {[%clk 0:02:34]} 9. hxg6 {[%clk 0:02:10]}  hxg6 {[%clk 0:02:34]} 10. Bh6 {[%clk 0:01:59]}  Bxh6 {[%clk 0:02:16]} 11. Rxh6 {[%clk 0:02:00]}  Bh5 {[%clk 0:02:16]} 12. Qd2 {[%clk 0:01:58]}  Nf5 {[%clk 0:02:14]} 13. O-O-O {[%clk 0:01:43]}  Kg7 {[%clk 0:02:11]} 14. Rxh5 {[%clk 0:01:43]}  gxh5 {[%clk 0:02:11]} 15. Bh3 {[%clk 0:01:43]}  Nh6 {[%clk 0:01:59]} 16. Rh1 {[%clk 0:01:38]}  Rh8 {[%clk 0:01:50]} 17. Nh4 {[%clk 0:01:15]}  Ne7 {[%clk 0:01:39]} 18. f4 {[%clk 0:01:13]}  Ng6 {[%clk 0:01:32]} 19. Nf5+ {[%clk 0:01:13]}  Nxf5 {[%clk 0:01:31]} 20. Bxf5 {[%clk 0:01:14]}  exf4 {[%clk 0:01:28]} 21. gxf4 {[%clk 0:01:12]}  Qf6 {[%clk 0:01:26]} 22. e4 {[%clk 0:01:12]}  Rag8 {[%clk 0:01:19]} 23. Nd5 {[%clk 0:01:10]}  Qd8 {[%clk 0:01:17]} 24. Qc3+ {[%clk 0:01:08]}  f6 {[%clk 0:01:17]} 25. Be6 {[%clk 0:00:59]}  c6 {[%clk 0:01:06]} 26. Bxg8 {[%clk 0:00:50]}  cxd5 {[%clk 0:00:59]} 27. Bxd5 {[%clk 0:00:51]}  Nxf4 {[%clk 0:01:00]} 28. Rg1+ {[%clk 0:00:49]}  Kh6 {[%clk 0:00:47]} 29. Qd2 {[%clk 0:00:49]}  Qe7 {[%clk 0:00:28]} 30. Qxf4+ {[%clk 0:00:50]}  Kh7 {[%clk 0:00:28]} 31. Qf5+ {[%clk 0:00:49]}  Kh6 {[%clk 0:00:28]} 32. Qg6# {[%clk 0:00:50]} 1-0


[Site "https://www.chess.com"]

[Event "Titled Tuesday Blitz September 28 2021"]
[White "Odegov, Artem"]
[Black "Bok, Benjamin"]
[WhiteFideId "34183644"]
[BlackFideId "1017063"]
[WhiteElo "2257"]
[BlackElo "2658"]
[Result "0-1"]
[Round "01"]
[TimeControl "180+1"]
[Date "2021.09.28"]
[WhiteClock "0:00:03"]
[BlackClock "0:00:14"]

1. d4 {[%clk 0:03:00]}  Nf6 {[%clk 0:02:58]} 2. c4 {[%clk 0:03:01]}  e6 {[%clk 0:02:59]} 3. Nf3 {[%clk 0:03:00]}  d5 {[%clk 0:02:59]} 4. Nc3 {[%clk 0:03:00]}  c6 {[%clk 0:02:59]} 5. Bg5 {[%clk 0:03:00]}  h6 {[%clk 0:02:58]} 6. Bh4 {[%clk 0:02:47]}  dxc4 {[%clk 0:02:58]} 7. e4 {[%clk 0:02:46]}  g5 {[%clk 0:02:58]} 8. Bg3 {[%clk 0:02:45]}  b5 {[%clk 0:02:59]} 9. Be2 {[%clk 0:02:46]}  Bb7 {[%clk 0:02:59]} 10. h4 {[%clk 0:02:44]}  g4 {[%clk 0:02:58]} 11. Ne5 {[%clk 0:02:39]}  Nbd7 {[%clk 0:02:58]} 12. O-O {[%clk 0:02:29]}  Nxe5 {[%clk 0:02:48]} 13. Bxe5 {[%clk 0:02:18]}  Rg8 {[%clk 0:02:48]} 14. f3 {[%clk 0:02:12]}  Nd7 {[%clk 0:02:33]} 15. Bg3 {[%clk 0:01:35]}  Be7 {[%clk 0:01:54]} 16. Qe1 {[%clk 0:01:31]}  Qb6 {[%clk 0:01:46]} 17. Qf2 {[%clk 0:01:12]}  gxf3 {[%clk 0:01:38]} 18. Bxf3 {[%clk 0:01:09]}  O-O-O {[%clk 0:01:35]} 19. a4 {[%clk 0:01:07]}  a6 {[%clk 0:01:15]} 20. Rfc1 {[%clk 0:00:27]}  Rxg3 {[%clk 0:01:10]} 21. Qxg3 {[%clk 0:00:26]}  Qxd4+ {[%clk 0:01:11]} 22. Kh1 {[%clk 0:00:24]}  Bd6 {[%clk 0:01:06]} 23. Ne2 {[%clk 0:00:09]}  Qc5 {[%clk 0:00:52]} 24. Qe1 {[%clk 0:00:04]}  Ne5 {[%clk 0:00:52]} 25. Qg1 {[%clk 0:00:02]}  Nd3 {[%clk 0:00:37]} 26. Qxc5 {[%clk 0:00:02]}  Bxc5 {[%clk 0:00:38]} 27. Rf1 {[%clk 0:00:02]}  Nxb2 {[%clk 0:00:36]} 28. axb5 {[%clk 0:00:03]}  cxb5 {[%clk 0:00:37]} 29. e5 {[%clk 0:00:02]}  Rd7 {[%clk 0:00:19]} 30. Nc3 {[%clk 0:00:02]}  Nd3 {[%clk 0:00:18]} 31. Bxb7+ {[%clk 0:00:02]}  Kxb7 {[%clk 0:00:18]} 32. Ne4 {[%clk 0:00:03]}  Bd4 {[%clk 0:00:17]} 33. Rxf7 {[%clk 0:00:02]}  Rxf7 {[%clk 0:00:16]} 34. Ra2 {[%clk 0:00:02]}  Rf1+ {[%clk 0:00:14]} 35. Kh2 {[%clk 0:00:03]}  Bxe5+ {[%clk 0:00:15]} 36. g3 {[%clk 0:00:03]}  Kb6 {[%clk 0:00:15]} 37. Rf2 {[%clk 0:00:03]}  Nxf2 {[%clk 0:00:14]} 0-1


[Site "https://www.chess.com"]

[Event "Titled Tuesday Blitz September 28 2021"]
[White "Pasti, Aron"]
[Black "Pakleza, Zbigniew"]
[WhiteFideId "785857"]
[BlackFideId "1119290"]
[WhiteElo "2080"]
[BlackElo "2526"]
[Result "1-0"]
[Round "01"]
[TimeControl "180+1"]
[Date "2021.09.28"]
[WhiteClock "0:00:08"]
[BlackClock "0:00:08"]

1. e4 {[%clk 0:02:32]}  d6 {[%clk 0:02:58]} 2. d4 {[%clk 0:02:15]}  Nf6 {[%clk 0:02:58]} 3. Nc3 {[%clk 0:02:14]}  c6 {[%clk 0:02:59]} 4. a4 {[%clk 0:02:10]}  Nbd7 {[%clk 0:02:58]} 5. f4 {[%clk 0:02:10]}  e5 {[%clk 0:02:56]} 6. Nf3 {[%clk 0:02:10]}  Be7 {[%clk 0:02:49]} 7. Bc4 {[%clk 0:02:02]}  O-O {[%clk 0:02:49]} 8. fxe5 {[%clk 0:01:53]}  dxe5 {[%clk 0:02:48]} 9. dxe5 {[%clk 0:01:54]}  Ng4 {[%clk 0:02:14]} 10. e6 {[%clk 0:01:53]}  Nde5 {[%clk 0:02:14]} 11. exf7+ {[%clk 0:01:51]}  Kh8 {[%clk 0:01:56]} 12. Qxd8 {[%clk 0:01:50]}  Bxd8 {[%clk 0:01:54]} 13. Bb3 {[%clk 0:01:48]}  Nxf3+ {[%clk 0:01:49]} 14. gxf3 {[%clk 0:01:48]}  Ne5 {[%clk 0:01:50]} 15. Ke2 {[%clk 0:01:44]}  Nxf7 {[%clk 0:01:48]} 16. Bf4 {[%clk 0:01:37]}  Bf6 {[%clk 0:01:37]} 17. Rad1 {[%clk 0:01:32]}  Ne5 {[%clk 0:01:34]} 18. Nb1 {[%clk 0:00:47]}  Bh3 {[%clk 0:01:27]} 19. Nd2 {[%clk 0:00:36]}  Ng6 {[%clk 0:01:24]} 20. Bg3 {[%clk 0:00:33]}  Bxb2 {[%clk 0:01:22]} 21. Ke3 {[%clk 0:00:27]}  Ba3 {[%clk 0:01:14]} 22. Nc4 {[%clk 0:00:20]}  Bc5+ {[%clk 0:01:13]} 23. Ke2 {[%clk 0:00:19]}  Bg2 {[%clk 0:01:11]} 24. Rhf1 {[%clk 0:00:16]}  Bxf1+ {[%clk 0:01:11]} 25. Rxf1 {[%clk 0:00:17]}  Nf4+ {[%clk 0:01:10]} 26. Bxf4 {[%clk 0:00:17]}  Rxf4 {[%clk 0:01:11]} 27. Ne5 {[%clk 0:00:17]}  Rh4 {[%clk 0:00:57]} 28. Nf7+ {[%clk 0:00:13]}  Kg8 {[%clk 0:00:58]} 29. Ng5+ {[%clk 0:00:13]}  Kf8 {[%clk 0:00:54]} 30. Ne6+ {[%clk 0:00:14]}  Ke7 {[%clk 0:00:55]} 31. Nxc5 {[%clk 0:00:14]}  Rxh2+ {[%clk 0:00:56]} 32. Ke3 {[%clk 0:00:13]}  b6 {[%clk 0:00:54]} 33. Nd3 {[%clk 0:00:13]}  g5 {[%clk 0:00:37]} 34. Ne5 {[%clk 0:00:12]}  c5 {[%clk 0:00:34]} 35. Rg1 {[%clk 0:00:11]}  h6 {[%clk 0:00:33]} 36. Bd5 {[%clk 0:00:11]}  Rc8 {[%clk 0:00:27]} 37. Nc6+ {[%clk 0:00:05]}  Kf6 {[%clk 0:00:21]} 38. Nxa7 {[%clk 0:00:05]}  Rh8 {[%clk 0:00:19]} 39. Nc6 {[%clk 0:00:03]}  Rxc2 {[%clk 0:00:19]} 40. e5+ {[%clk 0:00:04]}  Kg7 {[%clk 0:00:18]} 41. e6 {[%clk 0:00:04]}  Kf6 {[%clk 0:00:16]} 42. f4 {[%clk 0:00:04]}  gxf4+ {[%clk 0:00:04]} 43. Kxf4 {[%clk 0:00:04]}  Rf2+ {[%clk 0:00:02]} 44. Ke3 {[%clk 0:00:04]}  Rf5 {[%clk 0:00:03]} 45. Ke4 {[%clk 0:00:03]}  Rg5 {[%clk 0:00:03]} 46. Rf1+ {[%clk 0:00:03]}  Kg6 {[%clk 0:00:04]} 47. Ne7+ {[%clk 0:00:02]}  Kh5 {[%clk 0:00:05]} 48. Rh1+ {[%clk 0:00:01]}  Kg4 {[%clk 0:00:05]} 49. Nc6 {[%clk 0:00:01]}  Ra8 {[%clk 0:00:04]} 50. Ne5+ {[%clk 0:00:02]}  Kg3 {[%clk 0:00:05]} 51. Rg1+ {[%clk 0:00:03]}  Kf2 {[%clk 0:00:05]} 52. Rxg5 {[%clk 0:00:03]}  Rxa4+ {[%clk 0:00:06]} 53. Kf5 {[%clk 0:00:03]}  hxg5 {[%clk 0:00:07]} 54. e7 {[%clk 0:00:04]}  Rf4+ {[%clk 0:00:06]} 55. Kxg5 {[%clk 0:00:04]}  Rd4 {[%clk 0:00:07]} 56. e8=Q {[%clk 0:00:04]}  Rxd5 {[%clk 0:00:07]} 57. Qf7+ {[%clk 0:00:05]}  Ke3 {[%clk 0:00:08]} 58. Qxd5 {[%clk 0:00:06]}  b5 {[%clk 0:00:07]} 59. Nc4+ {[%clk 0:00:07]}  bxc4 {[%clk 0:00:08]} 60. Qxc4 {[%clk 0:00:07]}  Kd2 {[%clk 0:00:08]} 61. Qxc5 {[%clk 0:00:08]} 1-0


[Site "https://www.chess.com"]

[Event "Titled Tuesday Blitz September 28 2021"]
[White "Petriashvili, Nikoloz"]
[Black "Kovanova, Baira"]
[WhiteFideId "13611216"]
[BlackFideId "4164083"]
[WhiteElo "2430"]
[BlackElo "2187"]
[Result "1-0"]
[Round "01"]
[TimeControl "180+1"]
[Date "2021.09.28"]
[WhiteClock "0:00:04"]
[BlackClock "0:00:03"]

1. e4 {[%clk 0:02:42]}  e5 {[%clk 0:02:59]} 2. Nf3 {[%clk 0:02:35]}  Nc6 {[%clk 0:02:59]} 3. Bb5 {[%clk 0:02:34]}  a6 {[%clk 0:02:59]} 4. Ba4 {[%clk 0:02:33]}  b5 {[%clk 0:02:53]} 5. Bb3 {[%clk 0:02:33]}  Bb7 {[%clk 0:02:52]} 6. c3 {[%clk 0:02:31]}  Nf6 {[%clk 0:02:42]} 7. Qe2 {[%clk 0:02:31]}  Bc5 {[%clk 0:02:38]} 8. d3 {[%clk 0:02:27]}  d6 {[%clk 0:02:34]} 9. O-O {[%clk 0:02:28]}  O-O {[%clk 0:02:33]} 10. Bg5 {[%clk 0:02:27]}  h6 {[%clk 0:02:26]} 11. Bh4 {[%clk 0:02:26]}  Qe7 {[%clk 0:02:17]} 12. Nbd2 {[%clk 0:02:25]}  Nd8 {[%clk 0:02:16]} 13. d4 {[%clk 0:02:23]}  Bb6 {[%clk 0:02:16]} 14. Rfe1 {[%clk 0:02:17]}  Ne6 {[%clk 0:02:15]} 15. dxe5 {[%clk 0:02:14]}  dxe5 {[%clk 0:02:14]} 16. Bg3 {[%clk 0:01:38]}  Nf4 {[%clk 0:02:11]} 17. Bxf4 {[%clk 0:01:39]}  exf4 {[%clk 0:02:12]} 18. h3 {[%clk 0:01:39]}  Rfe8 {[%clk 0:02:06]} 19. e5 {[%clk 0:01:39]}  Nd7 {[%clk 0:02:02]} 20. e6 {[%clk 0:01:32]}  fxe6 {[%clk 0:01:55]} 21. Qxe6+ {[%clk 0:01:32]}  Qxe6 {[%clk 0:01:41]} 22. Bxe6+ {[%clk 0:01:33]}  Rxe6 {[%clk 0:01:42]} 23. Rxe6 {[%clk 0:01:34]}  Nc5 {[%clk 0:01:42]} 24. Re7 {[%clk 0:01:34]}  Nd3 {[%clk 0:01:39]} 25. Nd4 {[%clk 0:01:31]}  Rd8 {[%clk 0:01:27]} 26. N2f3 {[%clk 0:00:42]}  Rd6 {[%clk 0:01:20]} 27. Re2 {[%clk 0:00:37]}  Kh7 {[%clk 0:01:15]} 28. Rd1 {[%clk 0:00:36]}  Nc5 {[%clk 0:01:12]} 29. Ne5 {[%clk 0:00:29]}  Ne4 {[%clk 0:00:57]} 30. Ree1 {[%clk 0:00:30]}  Bd5 {[%clk 0:00:33]} 31. Kf1 {[%clk 0:00:24]}  Bxa2 {[%clk 0:00:16]} 32. Rxe4 {[%clk 0:00:22]}  c5 {[%clk 0:00:13]} 33. Rxf4 {[%clk 0:00:14]}  cxd4 {[%clk 0:00:13]} 34. cxd4 {[%clk 0:00:15]}  Bd5 {[%clk 0:00:09]} 35. h4 {[%clk 0:00:14]}  Rd8 {[%clk 0:00:07]} 36. h5 {[%clk 0:00:15]}  Rc8 {[%clk 0:00:06]} 37. Ng6 {[%clk 0:00:15]}  Bc4+ {[%clk 0:00:04]} 38. Kg1 {[%clk 0:00:15]}  a5 {[%clk 0:00:04]} 39. d5 {[%clk 0:00:07]}  Rd8 {[%clk 0:00:04]} 40. d6 {[%clk 0:00:06]}  a4 {[%clk 0:00:04]} 41. d7 {[%clk 0:00:06]}  Be6 {[%clk 0:00:03]} 42. Rf8 {[%clk 0:00:04]}  Rxd7 {[%clk 0:00:03]} 43. Rh8# {[%clk 0:00:04]} 1-0


[Site "https://www.chess.com"]

[Event "Titled Tuesday Blitz September 28 2021"]
[White "Pichot, Alan"]
[Black "LEGENYA1998"]
[WhiteFideId "110973"]
[WhiteElo "2600"]
[BlackElo "2425"]
[Result "1-0"]
[Round "01"]
[TimeControl "180+1"]
[Date "2021.09.28"]
[WhiteClock "0:02:08"]
[BlackClock "0:01:38"]

1. e4 {[%clk 0:03:00]}  e5 {[%clk 0:02:52]} 2. Nf3 {[%clk 0:03:00]}  Nc6 {[%clk 0:02:52]} 3. Bb5 {[%clk 0:03:00]}  a6 {[%clk 0:02:50]} 4. Ba4 {[%clk 0:03:00]}  Nf6 {[%clk 0:02:48]} 5. d3 {[%clk 0:03:01]}  Bc5 {[%clk 0:02:46]} 6. O-O {[%clk 0:03:00]}  b5 {[%clk 0:02:45]} 7. Bb3 {[%clk 0:03:00]}  d6 {[%clk 0:02:45]} 8. c3 {[%clk 0:03:00]}  Bg4 {[%clk 0:02:44]} 9. h3 {[%clk 0:02:59]}  Bh5 {[%clk 0:02:44]} 10. Re1 {[%clk 0:03:00]}  O-O {[%clk 0:02:44]} 11. Nbd2 {[%clk 0:03:00]}  h6 {[%clk 0:02:25]} 12. Nf1 {[%clk 0:02:56]}  Bg6 {[%clk 0:02:24]} 13. Ng3 {[%clk 0:02:55]}  a5 {[%clk 0:02:19]} 14. Nh4 {[%clk 0:02:53]}  Bh7 {[%clk 0:02:19]} 15. Nhf5 {[%clk 0:02:52]}  d5 {[%clk 0:02:17]} 16. Qf3 {[%clk 0:02:51]}  dxe4 {[%clk 0:02:12]} 17. Nxe4 {[%clk 0:02:48]}  Nxe4 {[%clk 0:02:10]} 18. dxe4 {[%clk 0:02:47]}  Ne7 {[%clk 0:02:08]} 19. Be3 {[%clk 0:02:10]}  Bxe3 {[%clk 0:02:04]} 20. Nxe3 {[%clk 0:02:11]}  Qd3 {[%clk 0:01:55]} 21. Nd5 {[%clk 0:02:11]}  Qxf3 {[%clk 0:01:44]} 22. Nxe7+ {[%clk 0:02:10]}  Kh8 {[%clk 0:01:45]} 23. gxf3 {[%clk 0:02:10]}  Rad8 {[%clk 0:01:38]} 24. Rad1 {[%clk 0:02:08]} 1-0


[Site "https://www.chess.com"]

[Event "Titled Tuesday Blitz September 28 2021"]
[White "Quintiliano Pinto, Renato R."]
[Black "Zlatin, Alexander"]
[WhiteFideId "2117568"]
[BlackFideId "2810549"]
[WhiteElo "2439"]
[BlackElo "2228"]
[Result "1-0"]
[Round "01"]
[TimeControl "180+1"]
[Date "2021.09.28"]
[WhiteClock "0:00:14"]
[BlackClock "0:00:20"]

1. Nf3 {[%clk 0:03:00]}  g6 {[%clk 0:02:53]} 2. c4 {[%clk 0:02:59]}  c5 {[%clk 0:02:53]} 3. Nc3 {[%clk 0:02:57]}  Nc6 {[%clk 0:02:53]} 4. g3 {[%clk 0:02:56]}  Bg7 {[%clk 0:02:52]} 5. Bg2 {[%clk 0:02:56]}  e5 {[%clk 0:02:52]} 6. O-O {[%clk 0:02:55]}  Nge7 {[%clk 0:02:52]} 7. Ne1 {[%clk 0:02:53]}  O-O {[%clk 0:02:47]} 8. Nc2 {[%clk 0:02:53]}  d6 {[%clk 0:02:45]} 9. Ne3 {[%clk 0:02:51]}  a6 {[%clk 0:02:37]} 10. d3 {[%clk 0:02:37]}  Rb8 {[%clk 0:02:33]} 11. a4 {[%clk 0:02:36]}  Be6 {[%clk 0:02:29]} 12. Ned5 {[%clk 0:02:35]}  h6 {[%clk 0:02:23]} 13. Rb1 {[%clk 0:02:33]}  f5 {[%clk 0:02:20]} 14. Bd2 {[%clk 0:02:31]}  Kh7 {[%clk 0:02:10]} 15. b4 {[%clk 0:02:28]}  cxb4 {[%clk 0:02:07]} 16. Nxb4 {[%clk 0:02:27]}  Nxb4 {[%clk 0:02:07]} 17. Rxb4 {[%clk 0:02:28]}  Nc6 {[%clk 0:02:08]} 18. Rb1 {[%clk 0:02:25]}  f4 {[%clk 0:02:02]} 19. e3 {[%clk 0:02:10]}  g5 {[%clk 0:01:52]} 20. Nd5 {[%clk 0:01:54]}  Bf5 {[%clk 0:01:30]} 21. Bc3 {[%clk 0:01:44]}  Qd7 {[%clk 0:01:25]} 22. Rb2 {[%clk 0:01:16]}  Bg4 {[%clk 0:01:21]} 23. Be4+ {[%clk 0:01:07]}  Kh8 {[%clk 0:01:19]} 24. Qb1 {[%clk 0:01:05]}  f3 {[%clk 0:01:14]} 25. Nb4 {[%clk 0:00:55]}  Nxb4 {[%clk 0:01:01]} 26. Rxb4 {[%clk 0:00:54]}  Bh5 {[%clk 0:00:57]} 27. Kh1 {[%clk 0:00:44]}  Qh3 {[%clk 0:00:30]} 28. Rg1 {[%clk 0:00:43]}  g4 {[%clk 0:00:29]} 29. Rxb7 {[%clk 0:00:34]}  Rxb7 {[%clk 0:00:29]} 30. Qxb7 {[%clk 0:00:34]}  Be8 {[%clk 0:00:28]} 31. Qe7 {[%clk 0:00:25]}  Bc6 {[%clk 0:00:21]} 32. Bxc6 {[%clk 0:00:17]}  Rf5 {[%clk 0:00:21]} 33. Qe8+ {[%clk 0:00:14]}  Bf8 {[%clk 0:00:20]} 34. Be4 {[%clk 0:00:13]}  Rf6 {[%clk 0:00:18]} 35. c5 {[%clk 0:00:13]}  dxc5 {[%clk 0:00:18]} 36. Bxe5 {[%clk 0:00:12]}  Kg7 {[%clk 0:00:18]} 37. Bxf6+ {[%clk 0:00:13]}  Kxf6 {[%clk 0:00:19]} 38. Qxf8+ {[%clk 0:00:13]}  Ke6 {[%clk 0:00:20]} 39. Qxc5 {[%clk 0:00:12]}  h5 {[%clk 0:00:19]} 40. Qf5+ {[%clk 0:00:12]}  Kd6 {[%clk 0:00:19]} 41. Qg5 {[%clk 0:00:12]}  a5 {[%clk 0:00:18]} 42. Qh4 {[%clk 0:00:13]}  Qxh4 {[%clk 0:00:18]} 43. gxh4 {[%clk 0:00:13]}  Ke5 {[%clk 0:00:19]} 44. h3 {[%clk 0:00:14]}  g3 {[%clk 0:00:20]} 45. Rxg3 {[%clk 0:00:14]} 1-0


[Site "https://www.chess.com"]

[Event "Titled Tuesday Blitz September 28 2021"]
[White "Rustemov, Alexander"]
[Black "Ronka, Erik"]
[WhiteFideId "4119002"]
[BlackFideId "505080"]
[WhiteElo "2752"]
[BlackElo "2264"]
[Result "1-0"]
[Round "01"]
[TimeControl "180+1"]
[Date "2021.09.28"]
[WhiteClock "0:01:20"]
[BlackClock "0:01:09"]

1. d4 {[%clk 0:03:00]}  Nf6 {[%clk 0:02:59]} 2. c4 {[%clk 0:03:00]}  g6 {[%clk 0:02:59]} 3. Nf3 {[%clk 0:03:00]}  Bg7 {[%clk 0:03:00]} 4. g3 {[%clk 0:03:00]}  O-O {[%clk 0:03:00]} 5. Bg2 {[%clk 0:03:01]}  d6 {[%clk 0:03:01]} 6. Nc3 {[%clk 0:03:01]}  Nbd7 {[%clk 0:03:01]} 7. d5 {[%clk 0:03:01]}  Nc5 {[%clk 0:02:57]} 8. Be3 {[%clk 0:03:01]}  a5 {[%clk 0:02:35]} 9. O-O {[%clk 0:02:56]}  b6 {[%clk 0:02:33]} 10. h3 {[%clk 0:02:52]}  Nfd7 {[%clk 0:02:24]} 11. Bd4 {[%clk 0:02:50]}  Nf6 {[%clk 0:02:21]} 12. Rc1 {[%clk 0:02:36]}  Bd7 {[%clk 0:02:19]} 13. b3 {[%clk 0:02:28]}  Rc8 {[%clk 0:02:05]} 14. Re1 {[%clk 0:02:24]}  e5 {[%clk 0:02:04]} 15. dxe6 {[%clk 0:02:21]}  Nxe6 {[%clk 0:02:04]} 16. Be3 {[%clk 0:02:20]}  Re8 {[%clk 0:02:04]} 17. Qd2 {[%clk 0:02:01]}  Nc5 {[%clk 0:02:01]} 18. Nd4 {[%clk 0:01:46]}  Nfe4 {[%clk 0:01:56]} 19. Nxe4 {[%clk 0:01:38]}  Nxe4 {[%clk 0:01:57]} 20. Qd3 {[%clk 0:01:32]}  Nc5 {[%clk 0:01:56]} 21. Qc2 {[%clk 0:01:32]}  Ne6 {[%clk 0:01:56]} 22. Nc6 {[%clk 0:01:28]}  Qf6 {[%clk 0:01:45]} 23. Qd2 {[%clk 0:01:23]}  Kh8 {[%clk 0:01:12]} 24. Red1 {[%clk 0:01:22]}  Nc5 {[%clk 0:01:11]} 25. Bd4 {[%clk 0:01:21]}  Qxd4 {[%clk 0:01:09]} 26. Nxd4 {[%clk 0:01:20]} 1-0


[Site "https://www.chess.com"]

[Event "Titled Tuesday Blitz September 28 2021"]
[White "Seo, Jung Min"]
[Black "Pavlidis, Anastasios"]
[WhiteFideId "1734687"]
[BlackFideId "4208404"]
[WhiteElo "2486"]
[BlackElo "2136"]
[Result "0-1"]
[Round "01"]
[TimeControl "180+1"]
[Date "2021.09.28"]
[WhiteClock "0:00:14"]
[BlackClock "0:00:40"]

1. Nf3 {[%clk 0:03:00]}  Nf6 {[%clk 0:02:59]} 2. d4 {[%clk 0:02:59]}  g6 {[%clk 0:02:59]} 3. c4 {[%clk 0:02:59]}  Bg7 {[%clk 0:02:59]} 4. Nc3 {[%clk 0:03:00]}  d6 {[%clk 0:02:59]} 5. e4 {[%clk 0:03:00]}  O-O {[%clk 0:02:59]} 6. Be2 {[%clk 0:03:00]}  e5 {[%clk 0:02:59]} 7. O-O {[%clk 0:03:00]}  Nc6 {[%clk 0:02:59]} 8. d5 {[%clk 0:03:00]}  Ne7 {[%clk 0:02:59]} 9. Ne1 {[%clk 0:02:59]}  Nd7 {[%clk 0:02:58]} 10. Be3 {[%clk 0:03:00]}  f5 {[%clk 0:02:58]} 11. f3 {[%clk 0:03:00]}  f4 {[%clk 0:02:59]} 12. Bf2 {[%clk 0:03:00]}  g5 {[%clk 0:02:59]} 13. Rc1 {[%clk 0:03:00]}  h5 {[%clk 0:02:57]} 14. b4 {[%clk 0:02:57]}  a5 {[%clk 0:02:54]} 15. a3 {[%clk 0:02:57]}  Nf6 {[%clk 0:02:51]} 16. c5 {[%clk 0:02:57]}  g4 {[%clk 0:02:50]} 17. Nb5 {[%clk 0:02:51]}  Ng6 {[%clk 0:02:39]} 18. cxd6 {[%clk 0:02:50]}  cxd6 {[%clk 0:02:38]} 19. Nc7 {[%clk 0:02:49]}  g3 {[%clk 0:02:39]} 20. hxg3 {[%clk 0:02:30]}  fxg3 {[%clk 0:02:38]} 21. Bxg3 {[%clk 0:02:30]}  h4 {[%clk 0:02:38]} 22. Bh2 {[%clk 0:02:30]}  Ra7 {[%clk 0:02:27]} 23. b5 {[%clk 0:02:16]}  b6 {[%clk 0:02:18]} 24. Ne6 {[%clk 0:02:15]}  Bxe6 {[%clk 0:02:16]} 25. dxe6 {[%clk 0:02:16]}  Nh5 {[%clk 0:02:12]} 26. Rc6 {[%clk 0:02:13]}  Qg5 {[%clk 0:02:07]} 27. e7 {[%clk 0:01:51]}  Rxe7 {[%clk 0:02:01]} 28. Nd3 {[%clk 0:01:41]}  Ngf4 {[%clk 0:01:49]} 29. Nxf4 {[%clk 0:01:41]}  exf4 {[%clk 0:01:49]} 30. Qxd6 {[%clk 0:01:34]}  h3 {[%clk 0:01:45]} 31. Rf2 {[%clk 0:01:18]}  Be5 {[%clk 0:01:33]} 32. Qg6+ {[%clk 0:01:16]}  Rg7 {[%clk 0:01:33]} 33. Qxg5 {[%clk 0:01:13]}  Rxg5 {[%clk 0:01:32]} 34. Bc4+ {[%clk 0:01:11]}  Kh7 {[%clk 0:01:30]} 35. Kf1 {[%clk 0:01:06]}  Ng3+ {[%clk 0:01:22]} 36. Ke1 {[%clk 0:01:04]}  Bc3+ {[%clk 0:01:14]} 37. Kd1 {[%clk 0:01:03]}  Rd8+ {[%clk 0:01:06]} 38. Bd5 {[%clk 0:01:03]}  Bd4 {[%clk 0:01:03]} 39. Rd2 {[%clk 0:00:52]}  Be3 {[%clk 0:01:03]} 40. gxh3 {[%clk 0:00:38]}  Bxd2 {[%clk 0:01:00]} 41. Kxd2 {[%clk 0:00:39]}  Nf1+ {[%clk 0:01:00]} 42. Kd3 {[%clk 0:00:38]}  Nxh2 {[%clk 0:00:59]} 43. Rxb6 {[%clk 0:00:38]}  Nxf3 {[%clk 0:00:58]} 44. Rf6 {[%clk 0:00:37]}  Ne5+ {[%clk 0:00:57]} 45. Kd4 {[%clk 0:00:37]}  f3 {[%clk 0:00:55]} 46. b6 {[%clk 0:00:36]}  Kg7 {[%clk 0:00:48]} 47. Rf4 {[%clk 0:00:29]}  Nc6+ {[%clk 0:00:46]} 48. Kc5 {[%clk 0:00:27]}  Ne5 {[%clk 0:00:46]} 49. Kd4 {[%clk 0:00:23]}  Nd7 {[%clk 0:00:45]} 50. b7 {[%clk 0:00:23]}  Nb6 {[%clk 0:00:42]} 51. Rf7+ {[%clk 0:00:19]}  Kg6 {[%clk 0:00:41]} 52. Rxf3 {[%clk 0:00:13]}  Nxd5 {[%clk 0:00:40]} 53. exd5 {[%clk 0:00:14]}  Rgxd5+ {[%clk 0:00:40]} 54. Ke4 {[%clk 0:00:14]}  Rb5 {[%clk 0:00:40]} 0-1


[Site "https://www.chess.com"]